[Event "Early-Titled-Tuesday-Blitz-October-03-2023"]
[Site "Chess.com"]
[Date "2023.10.03"]
[Round "1"]
[White "Markov_Mikhail"]
[Black "vladoboch"]
[Result "1-0"]
[WhiteElo "2709"]
[BlackElo "2397"]
[TimeControl "180+1"]
[EndTime "8:07:10 PDT"]
[Termination "Markov_Mikhail won by resignation"]

1. c4 {[%clk 0:02:38.3]} 1... e5 {[%clk 0:02:59.2]} 2. Nc3 {[%clk 0:02:37.6]}
2... Bb4 {[%clk 0:02:58.1]} 3. Nd5 {[%clk 0:02:36.3]} 3... Be7 {[%clk
0:02:56.8]} 4. g3 {[%clk 0:02:35.8]} 4... Nf6 {[%clk 0:02:51.3]} 5. Bg2 {[%clk
0:02:36]} 5... Nxd5 {[%clk 0:02:50.6]} 6. cxd5 {[%clk 0:02:36.9]} 6... d6 {[%clk
0:02:50.7]} 7. d4 {[%clk 0:02:32.2]} 7... exd4 {[%clk 0:02:49]} 8. Qxd4 {[%clk
0:02:30.5]} 8... Bf6 {[%clk 0:02:49.1]} 9. Qc4 {[%clk 0:02:25.6]} 9... O-O
{[%clk 0:02:48.4]} 10. Nf3 {[%clk 0:02:24]} 10... Re8 {[%clk 0:02:22.7]} 11. O-O
{[%clk 0:02:23.9]} 11... Bd7 {[%clk 0:02:18.1]} 12. Qb3 {[%clk 0:02:19.9]} 12...
b6 {[%clk 0:02:04.9]} 13. Be3 {[%clk 0:02:18.9]} 13... Na6 {[%clk 0:01:59.5]}
14. Qc2 {[%clk 0:02:18.1]} 14... Nc5 {[%clk 0:01:56]} 15. Nd2 {[%clk 0:02:16.6]}
15... g6 {[%clk 0:01:52.9]} 16. Rac1 {[%clk 0:02:16.2]} 16... Bf5 {[%clk
0:01:52.3]} 17. Qc4 {[%clk 0:02:15.1]} 17... Bxb2 {[%clk 0:01:48.1]} 18. Rfe1
{[%clk 0:02:07.2]} 18... Bxc1 {[%clk 0:01:41]} 19. Rxc1 {[%clk 0:02:06.4]} 19...
Rxe3 {[%clk 0:01:41.9]} 20. fxe3 {[%clk 0:02:06.1]} 20... Qg5 {[%clk 0:01:42.1]}
21. Qd4 {[%clk 0:02:03.9]} 21... Re8 {[%clk 0:01:41.2]} 22. e4 {[%clk
0:02:02.6]} 22... Nxe4 {[%clk 0:01:38]} 23. Bxe4 {[%clk 0:01:59.3]} 23... Rxe4
{[%clk 0:01:35]} 24. Nxe4 {[%clk 0:01:46.2]} 24... Qxc1+ {[%clk 0:01:34.7]} 25.
Kf2 {[%clk 0:01:46.8]} 25... Bxe4 {[%clk 0:01:30.9]} 26. Qxe4 {[%clk 0:01:47.7]}
26... Qc3 {[%clk 0:01:25.4]} 27. a4 {[%clk 0:01:43.7]} 27... h5 {[%clk
0:01:22.4]} 28. h4 {[%clk 0:01:43.1]} 28... a6 {[%clk 0:01:19.4]} 29. Kg2 {[%clk
0:01:41.8]} 29... b5 {[%clk 0:01:18.4]} 30. axb5 {[%clk 0:01:42.7]} 30... axb5
{[%clk 0:01:16.1]} 31. Qe8+ {[%clk 0:01:43.1]} 31... Kg7 {[%clk 0:01:16.2]} 32.
Qxb5 {[%clk 0:01:44]} 32... Qe5 {[%clk 0:01:05.5]} 33. Qc4 {[%clk 0:01:42.8]}
33... f5 {[%clk 0:01:02.6]} 34. Qxc7+ {[%clk 0:01:42]} 34... Kh6 {[%clk
0:01:02.1]} 35. Qc4 {[%clk 0:01:39.4]} 35... g5 {[%clk 0:00:55.2]} 36. hxg5+
{[%clk 0:01:37.7]} 36... Kxg5 {[%clk 0:00:55.6]} 37. Kh3 {[%clk 0:01:21.6]}
37... Qe4 {[%clk 0:00:49.2]} 38. Qxe4 {[%clk 0:01:17]} 38... fxe4 {[%clk
0:00:48.8]} 39. e3 {[%clk 0:01:17.7]} 39... Kf5 {[%clk 0:00:37.9]} 40. Kh4
{[%clk 0:01:17.4]} 40... Kg6 {[%clk 0:00:20.5]} 41. g4 {[%clk 0:01:17.3]} 41...
hxg4 {[%clk 0:00:20.6]} 42. Kxg4 {[%clk 0:01:18.2]} 42... Kf6 {[%clk 0:00:18.2]}
43. Kf4 {[%clk 0:01:18]} 43... Ke7 {[%clk 0:00:19]} 44. Kxe4 {[%clk 0:01:18.9]}
44... Kf6 {[%clk 0:00:19.9]} 45. Kf4 {[%clk 0:00:58.6]} 45... Kg6 {[%clk
0:00:19.8]} 46. Kf3 {[%clk 0:00:52.4]} 46... Kf5 {[%clk 0:00:19.9]} 47. e4+
{[%clk 0:00:52.5]} 47... Ke5 {[%clk 0:00:18.2]} 48. Ke3 {[%clk 0:00:53.1]} 48...
Kf6 {[%clk 0:00:16.4]} 49. Kd4 {[%clk 0:00:49]} 49... Ke7 {[%clk 0:00:13.8]} 50.
Kc4 {[%clk 0:00:49.1]} 50... Kf6 {[%clk 0:00:13.7]} 51. Kb5 {[%clk 0:00:49.3]}
51... Ke5 {[%clk 0:00:12.2]} 52. Kc6 {[%clk 0:00:50.2]} 52... Kxe4 {[%clk
0:00:12.6]} 53. Kxd6 {[%clk 0:00:51.1]} 1-0

[Event "Early-Titled-Tuesday-Blitz-October-03-2023"]
[Site "Chess.com"]
[Date "2023.10.03"]
[Round "1"]
[White "temiksmozg"]
[Black "MajorCoast"]
[Result "1-0"]
[WhiteElo "2608"]
[BlackElo "2270"]
[TimeControl "180+1"]
[EndTime "8:07:11 PDT"]
[Termination "temiksmozg won on time"]

1. d4 {[%clk 0:02:53.6]} 1... Nf6 {[%clk 0:02:59.5]} 2. c4 {[%clk 0:02:44.8]}
2... e6 {[%clk 0:02:59]} 3. Nf3 {[%clk 0:02:42.2]} 3... d5 {[%clk 0:02:59.4]} 4.
Nc3 {[%clk 0:02:40.8]} 4... Ne4 {[%clk 0:02:58.6]} 5. Bf4 {[%clk 0:02:25.2]}
5... Bb4 {[%clk 0:02:51.4]} 6. Qc2 {[%clk 0:02:13.9]} 6... c6 {[%clk 0:02:41.9]}
7. Nd2 {[%clk 0:01:53.8]} 7... f5 {[%clk 0:02:38.2]} 8. e3 {[%clk 0:01:53.1]}
8... Nd7 {[%clk 0:02:27.2]} 9. f3 {[%clk 0:01:31.7]} 9... Nxd2 {[%clk
0:02:12.9]} 10. Qxd2 {[%clk 0:01:32.6]} 10... Nf6 {[%clk 0:02:03.3]} 11. Rc1
{[%clk 0:01:28]} 11... Qa5 {[%clk 0:01:58.3]} 12. a3 {[%clk 0:01:25.3]} 12...
Bxc3 {[%clk 0:01:55.2]} 13. Rxc3 {[%clk 0:01:21.9]} 13... Bd7 {[%clk 0:01:46.3]}
14. Be2 {[%clk 0:01:19.3]} 14... dxc4 {[%clk 0:01:43]} 15. Rxc4 {[%clk
0:01:16.1]} 15... Qxd2+ {[%clk 0:01:39.8]} 16. Kxd2 {[%clk 0:01:17]} 16... O-O-O
{[%clk 0:00:58.4]} 17. Be5 {[%clk 0:01:10.4]} 17... Be8 {[%clk 0:00:40.2]} 18.
b4 {[%clk 0:01:04]} 18... Nd5 {[%clk 0:00:37.2]} 19. Rhc1 {[%clk 0:00:50.8]}
19... Rg8 {[%clk 0:00:35.6]} 20. b5 {[%clk 0:00:45.6]} 20... Nb6 {[%clk
0:00:33.7]} 21. R4c2 {[%clk 0:00:39.7]} 21... g5 {[%clk 0:00:33.5]} 22. a4
{[%clk 0:00:32.8]} 22... Nd5 {[%clk 0:00:16.2]} 23. bxc6 {[%clk 0:00:16.8]}
23... Bxc6 {[%clk 0:00:15.5]} 24. Bb5 {[%clk 0:00:17.2]} 24... Nb4 {[%clk
0:00:04.7]} 25. Rc4 {[%clk 0:00:13.5]} 25... a5 {[%clk 0:00:03.4]} 26. Ke2
{[%clk 0:00:06.1]} 26... Kd7 {[%clk 0:00:03.4]} 27. Rc5 {[%clk 0:00:05.7]} 27...
f4 {[%clk 0:00:02.9]} 28. e4 {[%clk 0:00:04.8]} 28... h5 {[%clk 0:00:01.6]} 29.
Bxc6+ {[%clk 0:00:03.8]} 1-0

[Event "Early-Titled-Tuesday-Blitz-October-03-2023"]
[Site "Chess.com"]
[Date "2023.10.03"]
[Round "1"]
[White "ezkybel"]
[Black "ChessLover0108"]
[Result "0-1"]
[WhiteElo "2493"]
[BlackElo "2909"]
[TimeControl "180+1"]
[EndTime "8:07:12 PDT"]
[Termination "ChessLover0108 won by resignation"]

1. b3 {[%clk 0:03:00.4]} 1... a5 {[%clk 0:02:56.5]} 2. e3 {[%clk 0:02:59.2]}
2... a4 {[%clk 0:02:56.7]} 3. bxa4 {[%clk 0:02:58.3]} 3... Nf6 {[%clk
0:02:55.6]} 4. Bb2 {[%clk 0:02:58.1]} 4... e6 {[%clk 0:02:51.3]} 5. f4 {[%clk
0:02:53.6]} 5... b6 {[%clk 0:02:49.5]} 6. Nf3 {[%clk 0:02:48.9]} 6... Bb7 {[%clk
0:02:49.7]} 7. Be2 {[%clk 0:02:44.2]} 7... g6 {[%clk 0:02:49.6]} 8. Nc3 {[%clk
0:02:35.6]} 8... Bg7 {[%clk 0:02:49.5]} 9. O-O {[%clk 0:02:30.7]} 9... O-O
{[%clk 0:02:48.9]} 10. Ne5 {[%clk 0:02:16.2]} 10... Ne4 {[%clk 0:02:33]} 11.
Nxe4 {[%clk 0:02:03.6]} 11... Bxe4 {[%clk 0:02:33.9]} 12. d3 {[%clk 0:01:52.8]}
12... Bb7 {[%clk 0:02:31.9]} 13. Bf3 {[%clk 0:01:36.9]} 13... Bxf3 {[%clk
0:02:31.5]} 14. Rxf3 {[%clk 0:01:32.9]} 14... Rxa4 {[%clk 0:02:30.8]} 15. c4
{[%clk 0:01:29.9]} 15... Ra8 {[%clk 0:02:18.3]} 16. Qb3 {[%clk 0:01:29.5]} 16...
Na6 {[%clk 0:02:14.1]} 17. d4 {[%clk 0:01:25.6]} 17... d6 {[%clk 0:02:07.5]} 18.
Nd3 {[%clk 0:01:25.1]} 18... c5 {[%clk 0:02:03.1]} 19. d5 {[%clk 0:01:22.4]}
19... Bxb2 {[%clk 0:01:56.1]} 20. Qxb2 {[%clk 0:01:23.3]} 20... exd5 {[%clk
0:01:56.4]} 21. cxd5 {[%clk 0:01:22.8]} 21... Re8 {[%clk 0:01:53.2]} 22. f5
{[%clk 0:01:19.1]} 22... Qg5 {[%clk 0:01:08.9]} 23. Re1 {[%clk 0:01:16.4]} 23...
c4 {[%clk 0:01:06.4]} 24. Nf2 {[%clk 0:01:09.6]} 24... Nc5 {[%clk 0:00:55.7]}
25. Rg3 {[%clk 0:01:09.9]} 25... Qh5 {[%clk 0:00:19.6]} 26. Qxb6 {[%clk
0:00:54.6]} 26... c3 {[%clk 0:00:13]} 27. Qxd6 {[%clk 0:00:49.2]} 27... Rac8
{[%clk 0:00:13.3]} 28. fxg6 {[%clk 0:00:48.2]} 28... hxg6 {[%clk 0:00:12.7]} 29.
Ng4 {[%clk 0:00:48.5]} 29... Ne4 {[%clk 0:00:12.4]} 30. Nf6+ {[%clk 0:00:42.6]}
30... Nxf6 {[%clk 0:00:12.5]} 31. Qxf6 {[%clk 0:00:43.5]} 31... c2 {[%clk
0:00:12.4]} 32. Rh3 {[%clk 0:00:43.7]} 32... c1=Q {[%clk 0:00:11.2]} 33. Qf2
{[%clk 0:00:19.5]} 33... Qe5 {[%clk 0:00:06.7]} 34. Qh4 {[%clk 0:00:18.4]} 34...
Qxe1+ {[%clk 0:00:04.4]} 35. Qxe1 {[%clk 0:00:19.3]} 35... Qb2 {[%clk
0:00:04.8]} 36. Rf3 {[%clk 0:00:17]} 36... Rc1 {[%clk 0:00:05]} 0-1

[Event "Early-Titled-Tuesday-Blitz-October-03-2023"]
[Site "Chess.com"]
[Date "2023.10.03"]
[Round "1"]
[White "NikolaGry"]
[Black "Casper"]
[Result "1-0"]
[WhiteElo "2709"]
[BlackElo "2399"]
[TimeControl "180+1"]
[EndTime "8:07:12 PDT"]
[Termination "NikolaGry won by resignation"]

1. d4 {[%clk 0:03:00.9]} 1... Nf6 {[%clk 0:02:58.9]} 2. Bg5 {[%clk 0:03:00.1]}
2... g6 {[%clk 0:02:59.8]} 3. Bxf6 {[%clk 0:02:59.3]} 3... exf6 {[%clk
0:03:00.7]} 4. e3 {[%clk 0:02:59.4]} 4... Bg7 {[%clk 0:03:01.6]} 5. c4 {[%clk
0:02:58.4]} 5... O-O {[%clk 0:03:02.5]} 6. Nc3 {[%clk 0:02:58.6]} 6... f5 {[%clk
0:03:01.1]} 7. g3 {[%clk 0:02:58.7]} 7... c5 {[%clk 0:03:00.3]} 8. Nge2 {[%clk
0:02:51.2]} 8... cxd4 {[%clk 0:02:59.8]} 9. Nxd4 {[%clk 0:02:50.8]} 9... Nc6
{[%clk 0:02:59.7]} 10. Ndb5 {[%clk 0:02:43.6]} 10... Ne5 {[%clk 0:02:44.5]} 11.
Be2 {[%clk 0:02:36.2]} 11... b6 {[%clk 0:02:32.1]} 12. Nd6 {[%clk 0:02:33]}
12... Qc7 {[%clk 0:02:17.8]} 13. O-O {[%clk 0:02:29.1]} 13... Bb7 {[%clk
0:02:17]} 14. Nxb7 {[%clk 0:02:15.2]} 14... Qxb7 {[%clk 0:02:17.9]} 15. Rc1
{[%clk 0:02:14.1]} 15... Rac8 {[%clk 0:02:11]} 16. Qd5 {[%clk 0:02:05.8]} 16...
Qxd5 {[%clk 0:01:42.6]} 17. Nxd5 {[%clk 0:02:05]} 17... Rfe8 {[%clk 0:01:42.9]}
18. b3 {[%clk 0:01:59.1]} 18... Kf8 {[%clk 0:01:35.5]} 19. Rfd1 {[%clk
0:01:54.2]} 19... h5 {[%clk 0:01:22.8]} 20. h4 {[%clk 0:01:47.1]} 20... Rc5
{[%clk 0:01:13.5]} 21. Rc2 {[%clk 0:01:35.5]} 21... Rec8 {[%clk 0:01:10.8]} 22.
Rcd2 {[%clk 0:01:33.9]} 22... Ke8 {[%clk 0:00:30.7]} 23. Kg2 {[%clk 0:01:28]}
23... R5c6 {[%clk 0:00:25.4]} 24. Nb4 {[%clk 0:01:16.9]} 24... R6c7 {[%clk
0:00:20.2]} 25. Nd5 {[%clk 0:01:06.1]} 25... Rc6 {[%clk 0:00:20.4]} 26. Bf3
{[%clk 0:01:04.9]} 26... b5 {[%clk 0:00:16.1]} 27. cxb5 {[%clk 0:00:57.8]} 27...
Rc2 {[%clk 0:00:16.1]} 28. a4 {[%clk 0:00:53.7]} 28... R8c5 {[%clk 0:00:11.3]}
29. b6 {[%clk 0:00:41.6]} 29... axb6 {[%clk 0:00:11]} 30. Nxb6 {[%clk
0:00:41.3]} 30... Rxd2 {[%clk 0:00:11.5]} 31. Rxd2 {[%clk 0:00:40.4]} 31... Rc3
{[%clk 0:00:10.4]} 32. Bd5 {[%clk 0:00:38.1]} 32... Ng4 {[%clk 0:00:06.8]} 33.
a5 {[%clk 0:00:26.5]} 33... Rc1 {[%clk 0:00:06.5]} 34. Ra2 {[%clk 0:00:23.4]}
34... Be5 {[%clk 0:00:01.2]} 35. a6 {[%clk 0:00:20.5]} 35... Bb8 {[%clk
0:00:01.8]} 36. a7 {[%clk 0:00:15.2]} 1-0

[Event "Early-Titled-Tuesday-Blitz-October-03-2023"]
[Site "Chess.com"]
[Date "2023.10.03"]
[Round "1"]
[White "AbdulovOrkhan"]
[Black "GM_dmitrij"]
[Result "0-1"]
[WhiteElo "2511"]
[BlackElo "3060"]
[TimeControl "180+1"]
[EndTime "8:07:15 PDT"]
[Termination "GM_dmitrij won on time"]

1. e4 {[%clk 0:02:54]} 1... c5 {[%clk 0:02:55.2]} 2. Nf3 {[%clk 0:02:53.2]} 2...
e6 {[%clk 0:02:53.4]} 3. d4 {[%clk 0:02:52.8]} 3... cxd4 {[%clk 0:02:54.3]} 4.
Nxd4 {[%clk 0:02:52.1]} 4... Nf6 {[%clk 0:02:54.9]} 5. Nc3 {[%clk 0:02:51.3]}
5... Nc6 {[%clk 0:02:55.3]} 6. Ndb5 {[%clk 0:02:50.7]} 6... d6 {[%clk
0:02:53.9]} 7. Bf4 {[%clk 0:02:49.5]} 7... e5 {[%clk 0:02:54.2]} 8. Bg5 {[%clk
0:02:50.1]} 8... a6 {[%clk 0:02:53.7]} 9. Na3 {[%clk 0:02:50.4]} 9... b5 {[%clk
0:02:54]} 10. Nd5 {[%clk 0:02:50.2]} 10... Be7 {[%clk 0:02:53.5]} 11. Bxf6
{[%clk 0:02:50.8]} 11... Bxf6 {[%clk 0:02:54.4]} 12. c4 {[%clk 0:02:51.4]} 12...
b4 {[%clk 0:02:53]} 13. Nc2 {[%clk 0:02:50.9]} 13... Rb8 {[%clk 0:02:53.4]} 14.
Be2 {[%clk 0:02:50.1]} 14... O-O {[%clk 0:02:53]} 15. O-O {[%clk 0:02:50]} 15...
a5 {[%clk 0:02:53.3]} 16. Bg4 {[%clk 0:02:44.3]} 16... Be6 {[%clk 0:02:52.2]}
17. b3 {[%clk 0:02:43]} 17... g6 {[%clk 0:02:51.3]} 18. Nxf6+ {[%clk 0:02:36.8]}
18... Qxf6 {[%clk 0:02:51]} 19. Bxe6 {[%clk 0:02:37]} 19... Qxe6 {[%clk
0:02:43.3]} 20. Qd3 {[%clk 0:02:35.4]} 20... Nd8 {[%clk 0:02:35.2]} 21. Rad1
{[%clk 0:02:34.3]} 21... Nb7 {[%clk 0:02:35.4]} 22. Qd5 {[%clk 0:02:34]} 22...
Rfd8 {[%clk 0:02:11.8]} 23. Ne3 {[%clk 0:02:27.4]} 23... Nc5 {[%clk 0:02:11.1]}
24. f3 {[%clk 0:02:27]} 24... Kg7 {[%clk 0:02:07.8]} 25. Rd2 {[%clk 0:02:22.4]}
25... Qxd5 {[%clk 0:02:05.1]} 26. Rxd5 {[%clk 0:02:20.5]} 26... Kf6 {[%clk
0:02:01]} 27. Rfd1 {[%clk 0:02:19]} 27... Ke6 {[%clk 0:02:01.1]} 28. g4 {[%clk
0:02:08.2]} 28... f6 {[%clk 0:02:00.9]} 29. R5d2 {[%clk 0:01:55.2]} 29... a4
{[%clk 0:02:00.7]} 30. bxa4 {[%clk 0:01:47.7]} 30... Nxa4 {[%clk 0:02:01.6]} 31.
Nd5 {[%clk 0:01:47.2]} 31... Rdc8 {[%clk 0:01:52.2]} 32. f4 {[%clk 0:01:44.3]}
32... Nc5 {[%clk 0:01:36.8]} 33. f5+ {[%clk 0:01:39.2]} 33... Kf7 {[%clk
0:01:36.4]} 34. Re2 {[%clk 0:01:35.1]} 34... gxf5 {[%clk 0:01:29.9]} 35. gxf5
{[%clk 0:01:33.9]} 35... Na4 {[%clk 0:01:28.8]} 36. Kf2 {[%clk 0:00:47.5]} 36...
Rxc4 {[%clk 0:01:24.7]} 37. Kf3 {[%clk 0:00:48.2]} 37... Nc3 {[%clk 0:01:01.1]}
38. Nxc3 {[%clk 0:00:45.1]} 38... bxc3 {[%clk 0:01:02]} 39. Rc2 {[%clk
0:00:43.3]} 39... Rd4 {[%clk 0:00:47.7]} 40. Re1 {[%clk 0:00:23.7]} 40... Rc8
{[%clk 0:00:36.6]} 41. Re3 {[%clk 0:00:23.6]} 41... Rcc4 {[%clk 0:00:36.5]} 42.
Rcxc3 {[%clk 0:00:18.7]} 42... Rxe4 {[%clk 0:00:35.2]} 43. Rxc4 {[%clk
0:00:19.1]} 43... Rxc4 {[%clk 0:00:36.1]} 44. Rd3 {[%clk 0:00:18.6]} 44... e4+
{[%clk 0:00:35.5]} 0-1

[Event "Early-Titled-Tuesday-Blitz-October-03-2023"]
[Site "Chess.com"]
[Date "2023.10.03"]
[Round "1"]
[White "subham777"]
[Black "ferrufino64"]
[Result "1-0"]
[WhiteElo "2554"]
[BlackElo "2192"]
[TimeControl "180+1"]
[EndTime "8:07:15 PDT"]
[Termination "subham777 won by checkmate"]

1. e4 {[%clk 0:02:55.8]} 1... c5 {[%clk 0:02:59.1]} 2. Nf3 {[%clk 0:02:54.6]}
2... d6 {[%clk 0:02:59.2]} 3. d4 {[%clk 0:02:54.5]} 3... cxd4 {[%clk 0:03:00.1]}
4. Qxd4 {[%clk 0:02:54.9]} 4... Nc6 {[%clk 0:02:58.7]} 5. Bb5 {[%clk 0:02:54.2]}
5... Bd7 {[%clk 0:02:59.1]} 6. Bxc6 {[%clk 0:02:32]} 6... Bxc6 {[%clk
0:02:46.3]} 7. c4 {[%clk 0:02:30.5]} 7... Nf6 {[%clk 0:02:46.4]} 8. Nc3 {[%clk
0:02:29.3]} 8... e6 {[%clk 0:02:46.5]} 9. Bg5 {[%clk 0:02:28.8]} 9... Be7 {[%clk
0:02:46.5]} 10. O-O {[%clk 0:02:28.6]} 10... Qc7 {[%clk 0:02:46.7]} 11. Rac1
{[%clk 0:02:27]} 11... O-O {[%clk 0:02:24.8]} 12. Rfd1 {[%clk 0:02:22.1]} 12...
Rfd8 {[%clk 0:02:24.6]} 13. b4 {[%clk 0:02:14.1]} 13... b6 {[%clk 0:02:22.9]}
14. Bh4 {[%clk 0:02:01.5]} 14... Rac8 {[%clk 0:02:18.5]} 15. Bg3 {[%clk
0:01:57.2]} 15... Nh5 {[%clk 0:02:01.4]} 16. Qd3 {[%clk 0:01:51.3]} 16... Nxg3
{[%clk 0:02:01.1]} 17. hxg3 {[%clk 0:01:52]} 17... Qb7 {[%clk 0:01:33.1]} 18.
Nd4 {[%clk 0:01:46.3]} 18... Be8 {[%clk 0:01:32.2]} 19. b5 {[%clk 0:01:36.8]}
19... Rc7 {[%clk 0:01:17.3]} 20. Nce2 {[%clk 0:01:23.3]} 20... Rdc8 {[%clk
0:01:17.2]} 21. Nb3 {[%clk 0:01:12.5]} 21... a6 {[%clk 0:01:10.7]} 22. a4 {[%clk
0:01:10.9]} 22... axb5 {[%clk 0:01:04.8]} 23. axb5 {[%clk 0:01:11.8]} 23... Qa8
{[%clk 0:01:02.2]} 24. Ra1 {[%clk 0:01:02.7]} 24... Qb7 {[%clk 0:01:02.2]} 25.
Ra4 {[%clk 0:00:57.3]} 25... g6 {[%clk 0:00:57.7]} 26. Rda1 {[%clk 0:00:52.6]}
26... Rb8 {[%clk 0:00:58]} 27. Ned4 {[%clk 0:00:47.6]} 27... Qc8 {[%clk
0:00:57.6]} 28. f4 {[%clk 0:00:43.8]} 28... Bf6 {[%clk 0:00:57.4]} 29. Rd1
{[%clk 0:00:36.4]} 29... Ra8 {[%clk 0:00:53.6]} 30. Rda1 {[%clk 0:00:32.6]}
30... Rb8 {[%clk 0:00:52.4]} 31. Kh2 {[%clk 0:00:25.7]} 31... h5 {[%clk
0:00:48.3]} 32. Rf1 {[%clk 0:00:22.4]} 32... Ra8 {[%clk 0:00:46.1]} 33. Rxa8
{[%clk 0:00:21.2]} 33... Qxa8 {[%clk 0:00:47]} 34. f5 {[%clk 0:00:21]} 34...
exf5 {[%clk 0:00:47.4]} 35. exf5 {[%clk 0:00:21.1]} 35... g5 {[%clk 0:00:47.9]}
36. Qe2 {[%clk 0:00:19.2]} 36... Qa4 {[%clk 0:00:33.3]} 37. Qxe8+ {[%clk
0:00:18.4]} 37... Kg7 {[%clk 0:00:33.1]} 38. Ne6+ {[%clk 0:00:13.5]} 38... fxe6
{[%clk 0:00:31]} 39. Qg6+ {[%clk 0:00:14.1]} 39... Kf8 {[%clk 0:00:30.4]} 40.
Qxf6+ {[%clk 0:00:14.7]} 40... Rf7 {[%clk 0:00:30.5]} 41. Qd8+ {[%clk
0:00:14.2]} 41... Kg7 {[%clk 0:00:31]} 42. Qxg5+ {[%clk 0:00:09.6]} 42... Kf8
{[%clk 0:00:31.1]} 43. Qh6+ {[%clk 0:00:09.2]} 43... Ke8 {[%clk 0:00:31.1]} 44.
Qxe6+ {[%clk 0:00:08.9]} 44... Kf8 {[%clk 0:00:31.3]} 45. Qh6+ {[%clk
0:00:07.7]} 45... Ke8 {[%clk 0:00:31]} 46. Re1+ {[%clk 0:00:08.1]} 46... Kd8
{[%clk 0:00:30.9]} 47. Qxd6+ {[%clk 0:00:07.2]} 47... Rd7 {[%clk 0:00:30.3]} 48.
Qb8# {[%clk 0:00:07.3]} 1-0

[Event "Early-Titled-Tuesday-Blitz-October-03-2023"]
[Site "Chess.com"]
[Date "2023.10.03"]
[Round "1"]
[White "ural58"]
[Black "Ergali_Suleimen"]
[Result "0-1"]
[WhiteElo "2519"]
[BlackElo "2253"]
[TimeControl "180+1"]
[EndTime "8:07:17 PDT"]
[Termination "Ergali_Suleimen won by resignation"]

1. e4 {[%clk 0:02:55.9]} 1... c5 {[%clk 0:02:52.7]} 2. b3 {[%clk 0:02:53.1]}
2... Nc6 {[%clk 0:02:52.2]} 3. Bb2 {[%clk 0:02:53.2]} 3... e5 {[%clk 0:02:48.8]}
4. f4 {[%clk 0:02:52.8]} 4... d6 {[%clk 0:02:45.6]} 5. Qf3 {[%clk 0:02:51.2]}
5... Nd4 {[%clk 0:02:42.1]} 6. Qd3 {[%clk 0:02:49.9]} 6... Nf6 {[%clk
0:02:40.3]} 7. Nf3 {[%clk 0:02:49.8]} 7... Nh5 {[%clk 0:02:29.7]} 8. fxe5 {[%clk
0:02:06.4]} 8... dxe5 {[%clk 0:02:23.1]} 9. Nxe5 {[%clk 0:02:00.4]} 9... Qh4+
{[%clk 0:01:35.8]} 10. g3 {[%clk 0:01:59.7]} 10... Nxg3 {[%clk 0:01:35.5]} 11.
hxg3 {[%clk 0:01:49.5]} 11... Qxh1 {[%clk 0:01:35.5]} 12. Na3 {[%clk 0:01:29.1]}
12... Bd6 {[%clk 0:01:17.6]} 13. Nac4 {[%clk 0:01:27.8]} 13... Bxe5 {[%clk
0:01:16.4]} 14. Nxe5 {[%clk 0:01:27.9]} 14... O-O {[%clk 0:01:16.7]} 15. O-O-O
{[%clk 0:01:27.2]} 15... Be6 {[%clk 0:01:08.7]} 16. Bxd4 {[%clk 0:01:21.4]}
16... cxd4 {[%clk 0:01:08.6]} 17. Qxd4 {[%clk 0:01:21.6]} 17... Rfd8 {[%clk
0:01:07.9]} 18. Qe3 {[%clk 0:01:21.1]} 18... Qh5 {[%clk 0:01:01.2]} 19. d4
{[%clk 0:01:14.1]} 19... a5 {[%clk 0:00:52.2]} 20. Be2 {[%clk 0:01:13.4]} 20...
Qh2 {[%clk 0:00:46]} 21. d5 {[%clk 0:01:09.7]} 21... Bd7 {[%clk 0:00:36.1]} 22.
Qf3 {[%clk 0:01:00.7]} 22... Qh6+ {[%clk 0:00:31.3]} 23. Kb1 {[%clk 0:00:58.5]}
23... Be8 {[%clk 0:00:30.7]} 24. Rh1 {[%clk 0:00:51.9]} 24... Qg5 {[%clk
0:00:30]} 25. Qf4 {[%clk 0:00:41.6]} 25... Qe7 {[%clk 0:00:28]} 26. a4 {[%clk
0:00:29.1]} 26... Rac8 {[%clk 0:00:22.6]} 27. c4 {[%clk 0:00:23.5]} 27... f6
{[%clk 0:00:21.3]} 28. Nf3 {[%clk 0:00:17.8]} 28... Bg6 {[%clk 0:00:21.5]} 29.
Nh4 {[%clk 0:00:14.9]} 29... Qxe4+ {[%clk 0:00:21]} 30. Qxe4 {[%clk 0:00:14.3]}
30... Bxe4+ {[%clk 0:00:21.2]} 31. Kb2 {[%clk 0:00:15.2]} 31... Bxh1 {[%clk
0:00:21.2]} 32. Kc3 {[%clk 0:00:15.6]} 32... Bxd5 {[%clk 0:00:21.2]} 33. Nf5
{[%clk 0:00:14.8]} 33... Be6 {[%clk 0:00:20.2]} 34. Ne7+ {[%clk 0:00:14.9]}
34... Kf7 {[%clk 0:00:20.9]} 35. Nxc8 {[%clk 0:00:15.4]} 35... Rxc8 {[%clk
0:00:21.5]} 36. Kd4 {[%clk 0:00:15.7]} 36... b6 {[%clk 0:00:22]} 37. Bf3 {[%clk
0:00:14.5]} 37... Rc5 {[%clk 0:00:22.5]} 38. Bb7 {[%clk 0:00:14.1]} 38... Ke7
{[%clk 0:00:22.4]} 39. Ba6 {[%clk 0:00:13]} 39... Kd6 {[%clk 0:00:22.6]} 40. Kc3
{[%clk 0:00:13.4]} 40... Ke5 {[%clk 0:00:22.5]} 41. b4 {[%clk 0:00:14.3]} 41...
axb4+ {[%clk 0:00:22.2]} 0-1